Workbook

Sheet Sheet1
B1: The Graphs of Two Functions
B3: This graphing utility produces the graphs
B4: of any two functions
C5: y = f(x) and y = g(x)
B6: on any interval from x = a to x = b.
A9: Enter the first function in terms of x: y = f(x) = | F9: sin(2*x)
A13: Enter the second function in terms of x: y = g(x) = | F13: cos(3*x)
A16: Now enter the interval for x:
B17: Starting value a = | D17: 0
B18: Ending value b = | D18: 6.28 | I18: The graphs of the two functions
J19: x = | K19: =F9 -> sin(2*x)
J20: y = | K20: =F13 -> cos(3*x)
I22: Now trace along the two curves:
A23: Click each item below for suggestions and investigations | I23: x = | J23: =D17+K23*Sheet2!B12 -> 2.068263473 | K23: 165
B24: Item 1 | I24: y = f(x) = | J24: =LOOKUP(J23,Sheet2!C3:C504,Sheet2!D3:D504) -> -0.8248090694
B25: Item 2 | I25: y = g(x) = | J25: =LOOKUP(J23,Sheet2!C3:C504,Sheet2!E3:E504) -> 0.9932795782
B26: Item 3
B27: Item 4
A31: To access/download all the DIGMath Apps for Calculus
A32: Click this link: | C32: DIGMath for Calculus
A34: Created by: Sheldon P. Gordon
A35: Farmingdale State College
A36: Development of this module was supported by the
A37: NSF's Division of Undergraduate Education
A38: under grants DUE-0310123 and DUE-0442160.

Sheet Sheet2
C1: t | D1: y = f(x) | E1: y = g(x) | H1: Tracing point
C3: =a -> 0 | D3: =SIN(2*x) -> 0 | E3: =COS(3*x) -> 1 | H3: 0 | I3: 0
C4: =C3+B$12 -> 0.01253493014 | D4: 0.0250672343 | E4: 0.9992930232 | H4: =Sheet1!J23 -> 2.068263473 | I4: =Sheet1!J24 -> -0.8248090694
C5: =C4+B$12 -> 0.02506986028 | D5: 0.05011871473 | E5: 0.9971730924 | H5: =Sheet1!J23 -> 2.068263473 | I5: =Sheet1!J25 -> 0.9932795782
C6: 0.03760479042 | D6: 0.07513869729 | E6: 0.9936432051 | H6: =H5 -> 2.068263473 | I6: =I5+1 -> 1.993279578
C7: 0.05013972056 | D7: 0.1001114578 | E7: 0.9887083523
C8: 0.0626746507 | D8: 0.1250213018 | E8: 0.9823755119
C9: 0.07520958084 | D9: 0.1498525743 | E9: 0.9746536379
C10: 0.08774451098 | D10: 0.1745896697 | E10: 0.965553649
C11: 0.1002794411 | D11: 0.1992170415 | E11: 0.955088412
A12: delta x = | B12: =(Sheet1!D18-Sheet1!D17)/501 -> 0.01253493014 | C12: 0.1128143713 | D12: 0.2237192125 | E12: 0.9432727242
C13: 0.1253493014 | D13: 0.2480807838 | E13: 0.9301232926
C14: 0.1378842315 | D14: 0.2722864449 | E14: 0.9156587097
C15: 0.1504191617 | D15: 0.2963209836 | E15: 0.8998994279
C16: 0.1629540918 | D16: 0.3201692949 | E16: 0.8828677301
C17: 0.175489022 | D17: 0.3438163911 | E17: 0.8645876982
C18: 0.1880239521 | D18: 0.3672474106 | E18: 0.8450851794
C19: 0.2005588822 | D19: 0.3904476281 | E19: 0.8243877493
C20: 0.2130938124 | D20: 0.4134024629 | E20: 0.8025246732
C21: 0.2256287425 | D21: 0.4360974887 | E21: 0.7795268645
C22: 0.2381636727 | D22: 0.4585184425 | E22: 0.7554268409
C23: 0.2506986028 | D23: 0.4806512335 | E23: 0.7302586788
C24: 0.2632335329 | D24: 0.5024819521 | E24: 0.7040579647
C25: 0.2757684631 | D25: 0.5239968783 | E25: 0.6768617454
C26: 0.2883033932 | D26: 0.5451824909 | E26: 0.6487084749
C27: 0.3008383234 | D27: 0.5660254753 | E27: 0.6196379608
C28: 0.3133732535 | D28: 0.5865127326 | E28: 0.5896913073
C29: 0.3259081836 | D29: 0.6066313872 | E29: 0.5589108576
C30: 0.3384431138 | D30: 0.6263687952 | E30: 0.5273401339
C31: 0.3509780439 | D31: 0.6457125523 | E31: 0.4950237757
C32: 0.3635129741 | D32: 0.6646505017 | E32: 0.4620074768
C33: 0.3760479042 | D33: 0.6831707415 | E33: 0.4283379208
C34: 0.3885828343 | D34: 0.7012616325 | E34: 0.3940627149
C35: 0.4011177645 | D35: 0.7189118051 | E35: 0.3592303225
C36: 0.4136526946 | D36: 0.7361101668 | E36: 0.3238899951
C37: 0.4261876248 | D37: 0.752845909 | E37: 0.2880917023
C38: 0.4387225549 | D38: 0.769108514 | E38: 0.2518860612
C39: 0.451257485 | D39: 0.7848877611 | E39: 0.2153242649
C40: 0.4637924152 | D40: 0.8001737339 | E40: 0.17845801
C41: 0.4763273453 | D41: 0.8149568254 | E41: 0.1413394238
C42: 0.4888622754 | D42: 0.8292277451 | E42: 0.1040209902
C43: 0.5013972056 | D43: 0.8429775242 | E43: 0.06655547579
C44: 0.5139321357 | D44: 0.8561975215 | E44: 0.02899585498
C45: 0.5264670659 | D45: 0.8688794286 | E45: -0.008604764621
C46: 0.539001996 | D46: 0.8810152755 | E46: -0.04619321748
C47: 0.5515369261 | D47: 0.892597435 | E47: -0.08371635528
C48: 0.5640718563 | D48: 0.9036186284 | E48: -0.121121122
C49: 0.5766067864 | D49: 0.9140719291 | E49: -0.1583546291
C50: 0.5891417166 | D50: 0.9239507676 | E50: -0.1953642301
C51: 0.6016766467 | D51: 0.9332489354 | E51: -0.2320975952
C52: 0.6142115768 | D52: 0.9419605889 | E52: -0.268502785
C53: 0.626746507 | D53: 0.9500802532 | E53: -0.3045283243
C54: 0.6392814371 | D54: 0.9576028253 | E54: -0.3401232747
C55: 0.6518163673 | D55: 0.9645235776 | E55: -0.3752373065
C56: 0.6643512974 | D56: 0.9708381606 | E56: -0.4098207702
C57: 0.6768862275 | D57: 0.9765426058 | E57: -0.4438247664
C58: 0.6894211577 | D58: 0.9816333282 | E58: -0.4772012149
C59: 0.7019560878 | D59: 0.9861071284 | E59: -0.509902923
C60: 0.714491018 | D60: 0.9899611948 | E60: -0.541883652
C61: 0.7270259481 | D61: 0.9931931053 | E61: -0.5730981827
C62: 0.7395608782 | D62: 0.9958008287 | E62: -0.6035023791
C63: 0.7520958084 | D63: 0.9977827262 | E63: -0.6330532511
C64: 0.7646307385 | D64: 0.9991375521 | E64: -0.6617090152
C65: 0.7771656687 | D65: 0.9998644551 | E65: -0.6894291535
C66: 0.7897005988 | D66: 0.9999629783 | E66: -0.7161744709
C67: 0.8022355289 | D67: =SIN(2*x) -> 0.9994330598 | E67: =COS(3*x) -> -0.7419071508
C68: 0.8147704591 | D68: 0.9982750326 | E68: -0.7665908083
C69: =C68+B$12 -> 0.8273053892 | D69: 0.9964896246 | E69: -0.7901905421
C70: 0.8398403194 | D70: 0.9940779577 | E70: -0.812672983
C71: 0.8523752495 | D71: 0.9910415476 | E71: -0.8340063421
C72: 0.8649101796 | D72: 0.9873823026 | E72: -0.8541604548
C73: 0.8774451098 | D73: 0.9831025224 | E73: -0.8731068243
C74: 0.8899800399 | D74: 0.9782048967 | E74: -0.8908186613
C75: 0.9025149701 | D75: 0.9726925035 | E75: -0.9072709219
C76: 0.9150499002 | D76: 0.9665688071 | E76: -0.9224403435
C77: 0.9275848303 | D77: 0.9598376561 | E77: -0.9363054773
C78: 0.9401197605 | D78: 0.9525032807 | E78: -0.9488467186
C79: 0.9526546906 | D79: 0.9445702903 | E79: -0.9600463345
C80: 0.9651896208 | D80: 0.9360436707 | E80: -0.9698884895
C81: 0.9777245509 | D81: 0.9269287803 | E81: -0.9783592672
C82: 0.990259481 | D82: 0.9172313477 | E82: -0.9854466902
C83: 1.002794411 | D83: 0.9069574673 | E83: -0.9911407373
C84: 1.015329341 | D84: 0.8961135959 | E84: -0.9954333573
C85: 1.027864271 | D85: 0.8847065485 | E85: -0.9983184808
C86: 1.040399202 | D86: 0.872743494 | E86: -0.9997920282
C87: 1.052934132 | D87: 0.8602319508 | E87: -0.9998519161
C88: 1.065469062 | D88: 0.8471797819 | E88: -0.9984980597
C89: 1.078003992 | D89: 0.8335951902 | E89: -0.9957323733
C90: 1.090538922 | D90: 0.8194867131 | E90: -0.9915587676
C91: 1.103073852 | D91: 0.8048632174 | E91: -0.9859831437
C92: 1.115608782 | D92: 0.7897338933 | E92: -0.9790133854
C93: 1.128143713 | D93: 0.774108249 | E93: -0.9706593476
C94: 1.140678643 | D94: 0.7579961049 | E94: -0.9609328425
C95: 1.153213573 | D95: 0.7414075868 | E95: -0.9498476229
C96: 1.165748503 | D96: 0.7243531199 | E96: -0.9374193628
C97: 1.178283433 | D97: 0.7068434225 | E97: -0.9236656352
C98: 1.190818363 | D98: 0.6888894988 | E98: -0.9086058872
C99: 1.203353293 | D99: 0.6705026321 | E99: -0.8922614126
C100: 1.215888224 | D100: 0.651694378 | E100: -0.8746553218
C101: 1.228423154 | D101: 0.6324765568 | E101: -0.8558125089
C102: 1.240958084 | D102: 0.6128612463 | E102: -0.8357596168
C103: 1.253493014 | D103: 0.5928607739 | E103: -0.8145249994
C104: 1.266027944 | D104: 0.5724877093 | E104: -0.7921386814
C105: 1.278562874 | D105: 0.5517548562 | E105: -0.768632316
C106: 1.291097804 | D106: 0.5306752445 | E106: -0.7440391402
C107: 1.303632735 | D107: 0.509262122 | E107: -0.7183939276
C108: 1.316167665 | D108: 0.4875289461 | E108: -0.6917329392
C109: 1.328702595 | D109: 0.4654893754 | E109: -0.6640938726
C110: 1.341237525 | D110: 0.4431572608 | E110: -0.635515808
C111: 1.353772455 | D111: 0.4205466375 | E111: -0.6060391535
C112: 1.366307385 | D112: 0.3976717153 | E112: -0.5757055878
C113: 1.378842315 | D113: 0.3745468703 | E113: -0.5445580011
C114: 1.391377246 | D114: 0.3511866358 | E114: -0.5126404346
C115: 1.403912176 | D115: 0.3276056928 | E115: -0.4799980183
C116: 1.416447106 | D116: 0.303818861 | E116: -0.446676907
C117: 1.428982036 | D117: 0.2798410898 | E117: -0.4127242154
C118: 1.441516966 | D118: 0.2556874482 | E118: -0.3781879508
C119: 1.454051896 | D119: 0.231373116 | E119: -0.343116946
C120: 1.466586826 | D120: 0.206913374 | E120: -0.3075607898
C121: 1.479121756 | D121: 0.1823235941 | E121: -0.2715697569
C122: 1.491656687 | D122: 0.1576192302 | E122: -0.2351947369
C123: 1.504191617 | D123: 0.1328158081 | E123: -0.1984871625
C124: 1.516726547 | D124: 0.107928916 | E124: -0.1614989364
C125: 1.529261477 | D125: 0.08297419434 | E125: -0.1242823583
C126: 1.541796407 | D126: 0.05796732629 | E126: -0.08689005077
C127: 1.554331337 | D127: 0.03292402781 | E127: -0.0493748847
C128: 1.566866267 | D128: 0.007860037725 | E128: -0.01178990484
C129: 1.579401198 | D129: -0.01720889212 | E129: 0.02581174541
C130: 1.591936128 | D130: -0.04226700677 | E130: 0.06337689904
C131: 1.604471058 | D131: =SIN(2*x) -> -0.06729855809 | E131: =COS(3*x) -> 0.1008524407
C132: 1.617005988 | D132: -0.09228781463 | E132: 0.1381853816
C133: =C132+B$12 -> 1.629540918 | D133: -0.1172190715 | E133: 0.1753229349
C134: 1.642075848 | D134: -0.1420766603 | E134: 0.2122125896
C135: 1.654610778 | D135: -0.1668449589 | E135: 0.2488021856
C136: 1.667145709 | D136: -0.1915084013 | E136: 0.2850399868
C137: 1.679680639 | D137: -0.2160514873 | E137: 0.3208747547
C138: 1.692215569 | D138: -0.2404587926 | E138: 0.3562558206
C139: 1.704750499 | D139: -0.2647149779 | E139: 0.3911331573
C140: 1.717285429 | D140: -0.2888047991 | E140: 0.4254574498
C141: 1.729820359 | D141: -0.3127131167 | E141: 0.4591801652
C142: 1.742355289 | D142: -0.336424905 | E142: 0.4922536212
C143: 1.75489022 | D143: -0.359925262 | E143: 0.5246310534
C144: 1.76742515 | D144: -0.3831994186 | E144: 0.5562666816
C145: 1.77996008 | D145: -0.4062327478 | E145: 0.5871157745
C146: 1.79249501 | D146: -0.4290107739 | E146: 0.6171347129
C147: 1.80502994 | D147: -0.4515191818 | E147: 0.6462810514
C148: 1.81756487 | D148: -0.4737438257 | E148: 0.6745135786
C149: 1.8300998 | D149: -0.4956707382 | E149: 0.7017923748
C150: 1.842634731 | D150: -0.517286139 | E150: 0.7280788691
C151: 1.855169661 | D151: -0.5385764435 | E151: 0.7533358937
C152: 1.867704591 | D152: -0.5595282717 | E152: 0.7775277362
C153: 1.880239521 | D153: -0.5801284559 | E153: 0.8006201906
C154: 1.892774451 | D154: -0.6003640497 | E154: 0.8225806052
C155: 1.905309381 | D155: -0.6202223357 | E155: 0.8433779289
C156: 1.917844311 | D156: -0.6396908337 | E156: 0.8629827554
C157: 1.930379242 | D157: -0.6587573084 | E157: 0.8813673643
C158: 1.942914172 | D158: -0.6774097772 | E158: 0.8985057605
C159: 1.955449102 | D159: -0.6956365177 | E159: 0.9143737114
C160: 1.967984032 | D160: -0.7134260751 | E160: 0.9289487801
C161: 1.980518962 | D161: -0.7307672691 | E161: 0.9422103584
C162: 1.993053892 | D162: -0.7476492014 | E162: 0.954139695
C163: 2.005588822 | D163: -0.7640612625 | E163: 0.9647199222
C164: 2.018123752 | D164: -0.7799931378 | E164: 0.9739360802
C165: 2.030658683 | D165: -0.7954348147 | E165: 0.9817751378
C166: 2.043193613 | D166: -0.8103765887 | E166: 0.9882260109
C167: 2.055728543 | D167: -0.8248090694 | E167: 0.9932795782
C168: 2.068263473 | D168: -0.8387231864 | E168: 0.9969286942
C169: 2.080798403 | D169: -0.8521101954 | E169: 0.9991681993
C170: 2.093333333 | D170: -0.8649616829 | E170: 0.9999949269
C171: 2.105868263 | D171: -0.8772695723 | E171: 0.9994077081
C172: 2.118403194 | D172: -0.8890261285 | E172: 0.9974073731
C173: 2.130938124 | D173: -0.9002239629 | E173: 0.9939967503
C174: 2.143473054 | D174: -0.910856038 | E174: 0.9891806622
C175: 2.156007984 | D175: -0.9209156721 | E175: 0.9829659185
C176: 2.168542914 | D176: -0.9303965429 | E176: 0.9753613067
C177: 2.181077844 | D177: -0.9392926921 | E177: 0.9663775791
C178: 2.193612774 | D178: -0.9475985287 | E178: 0.9560274385
C179: 2.206147705 | D179: -0.9553088328 | E179: 0.9443255194
C180: 2.218682635 | D180: -0.9624187587 | E180: 0.9312883678
C181: 2.231217565 | D181: -0.9689238382 | E181: 0.9169344177
C182: 2.243752495 | D182: -0.974819983 | E182: 0.9012839648
C183: 2.256287425 | D183: -0.9801034876 | E183: 0.8843591381
C184: 2.268822355 | D184: -0.9847710314 | E184: 0.8661838687
C185: 2.281357285 | D185: -0.9888196812 | E185: 0.8467838555
C186: 2.293892216 | D186: -0.9922468924 | E186: 0.8261865291
C187: 2.306427146 | D187: -0.9950505112 | E187: 0.8044210133
C188: 2.318962076 | D188: -0.9972287755 | E188: 0.7815180835
C189: 2.331497006 | D189: -0.9987803166 | E189: 0.7575101234
C190: 2.344031936 | D190: -0.9997041591 | E190: 0.7324310791
C191: 2.356566866 | D191: -0.9999997227 | E191: 0.7063164112
C192: 2.369101796 | D192: -0.9996668214 | E192: 0.6792030446
C193: 2.381636727 | D193: -0.9987056645 | E193: 0.6511293165
C194: 2.394171657 | D194: -0.9971168561 | E194: 0.6221349217
C195: 2.406706587 | D195: =SIN(2*x) -> -0.9949013947 | E195: =COS(3*x) -> 0.5922608569
C196: 2.419241517 | D196: -0.9920606726 | E196: 0.5615493628
C197: =C196+B$12 -> 2.431776447 | D197: -0.9885964751 | E197: 0.5300438639
C198: 2.444311377 | D198: -0.9845109794 | E198: 0.4977889076
C199: 2.456846307 | D199: -0.979806753 | E199: 0.4648301009
C200: 2.469381238 | D200: -0.9744867523 | E200: 0.4312140459
C201: 2.481916168 | D201: -0.9685543209 | E201: 0.3969882743
... 303 more rows

Sheet Defining Function
A1: Defining a Function in Excel
A3: Computers have very specific rules you must follow when defining a function. If you don't, the program will either not work at all or will work incorrectly.
A5: 1. The Variable used should be the one named in the instruction, usually x, though sometimes y, t, Q (for an angle theta),
A6: or even x and y (for a function of two variables).
A8: 2. Order of Operations: There five arithmetic operations, addition (+), subtraction (-), multiplication (*), division (/), and exponentiation or power (^). When computers see any of these operation symbols, they perform the indicated steps in a very particular order. First, the power is done. Second, products and quotients of adjacent terms is done. Third, and last, sums and differences of adjacent terms are done. So, in 10*x^3 + 5*x – 7, say with x = 2, the first pass only calculates 2^3 and ignores the multiplications and the sums and differences to calculate 2^3 = 8. The second pass looks at 10*8 + 5*2 – 7 and only does the multiplications, so it produces 80 + 10 - 7. The third pass looks at the +’s and –‘s to produce 80 + 10 – 7 = 83.
A10: 3. Parentheses If you need an operation involving more than two adjacent terms, as in Ö4^3 + 6^2, the computer would take the square root of 4 to produce 2^3 + 6^2; it would then cube the 2 and square the 6 to produce 8 + 36; and finally it would add the 8 and the 36 to get 44. If you actually wanted the square root of the entire expression, you would need to use parentheses, as in Ö(4^3 + 6^2) to tell the computer to do all the operations inside the parentheses before taking the square root. Therefore, it would calculate (4^3 + 6^2) = 64 + 36 = 100 and then take the square root of Ö100 = 10.
A12: 4. Built-In Functions Computer programs have built-in functions for most common algebraic functions. In Excel, the square root function is denoted by SQRT(…), so SQRT(100) = 10. Alternatively, you could enter it as 100^.5 or 100^(1/2); notice that parentheses are needed to have the ½ done first. The common trig functions are SIN (…), COS (…), and TAN (…), where the arguments are automatically interpreted as being in radians, not degrees. The logarithm to the base 10 is represented by LOG (…) and the logarithm with the base e, known as the natural logarithm, is LN (…). The corresponding exponential function with base e is EXP (x). If x is the variable, then each of these would be SQRT (x), SIN (x), COS (x), TAN (x), LOG (x) (for log with base 10 ), LN (x) (for log with base e ), and EXP (x).

Sheet Sheet3
